Cogmind - Beta 16 @@@ ROGUE MODE // 2026.02.06 @ 17:57:44 Player: Megaknight51 Result: Destroyed by A9-0YE(R) with Subdweller Shrapnel Launcher Performance ------------- Evolutions (0) 0 Regions Visited (2) 400 Robots Destroyed (25) 125 Value Destroyed (658) 658 Prototype IDs (0) 0 Alien Tech Used (0) 0 Bonus (0) 0 TOTAL SCORE: 1183 Bonus ------- None Cogmind --------- Core Integrity 0/250 Matter 298/300 Energy 254/265 System Corruption 1% Temperature Cool (2) Movement Rolling (120) Ox1 Location -10/Subcaves Parts ------- > --- POWER (1) -------- Reinforced Ion Engine > --- PROPULSION (2) --- Subdweller Monowheel Subdweller Monowheel > --- UTILITY (2) ------ High-capacity Storage Unit Subdweller Optics > --- WEAPON (2) ------- Subdweller Beam Cannon Subdweller Machine Gun > --- INVENTORY (20) --- Reinforced Ion Engine Light Treads Light Treads Light Treads VTOL Module VTOL Module VTOL Module VTOL Module High-capacity Matter Pod (153) High-capacity Matter Pod (0) Sensor Array Signal Interpreter Improved Terrain Scanner Beam Cannon Light Cannon Improved Light Cannon Improved Light Cannon Grenade Launcher Grenade Launcher Peak State ------------ > --- POWER ------------ Subdweller Power Source > --- PROPULSION ------- Subdweller Monowheel Subdweller Monowheel > --- UTILITY ---------- High-capacity Storage Unit Subdweller Optics > --- WEAPON ----------- Subdweller Beam Cannon Subdweller Machine Gun > --- INVENTORY -------- Reinforced Ion Engine Reinforced Ion Engine Light Treads Light Treads Light Treads VTOL Module VTOL Module VTOL Module VTOL Module High-capacity Matter Pod High-capacity Matter Pod Sensor Array Signal Interpreter Improved Terrain Scanner Beam Cannon Light Cannon Improved Light Cannon Improved Light Cannon Grenade Launcher Grenade Launcher [Rating: 16] Favorites ----------- Power Reinforced Ion Engine Engine Reinforced Ion Engine Propulsion Light Treads Treads Light Treads Wheel Subdweller Monowheel Utility Large Storage Unit Device Seismic Detector Storage Large Storage Unit Protection Light Armor Plating Weapon Improved Light Cannon Energy Gun EM Pulse Gun Energy Cannon Beam Cannon Ballistic Gun Subdweller Machine Gun Ballistic Cannon Improved Light Cannon Build | -11 -10 -10 ------- Run | Yrd Mat Sub Slots Evolved . | . . . Power . | . . . Propulsion . | . . . Utility . | . . . Weapon . | . . . Parts Attached 28 | 7 14 7 Power 4 | 1 1 2 Engine 4 | 1 1 2 Core . | . . . Reactor . | . . . Propulsion 6 | 2 2 2 Treads 4 | 2 2 . Leg . | . . . Wheel 2 | . . 2 Hover . | . . . Flight . | . . . Utility 7 | 2 4 1 Device 3 | 1 1 1 Storage 3 | 1 2 . Processor . | . . . Hackware . | . . . Protection 1 | . 1 . Artifact . | . . . Weapon 11 | 2 7 2 Energy Gun 2 | . 2 . Energy Cannon 3 | . 2 1 Ballistic Gun 3 | 2 . 1 Ballistic Cannon 3 | . 3 . Launcher . | . . . Special Weapon . | . . . Impact Weapon . | . . . Slashing Weapon . | . . . Piercing Weapon . | . . . Special Melee Weapon . | . . . Unidentified Prototypes . | . . . Parts Lost 4 | . 1 3 Power 1 | . . 1 Propulsion . | . . . Utility 1 | . . 1 Weapon 2 | . 1 1 Highest Loss Streak 3 | . 1 3 To Critical Strikes . | . . . Average Backups 14 | 1 13 19 Power 2 | . 2 1 Propulsion 5 | . 5 6 Utility 3 | . 3 5 Weapon 2 | . 2 5 Tool/Special . | . . . Unused Backups 15 | . 2 13 Power 3 | . 2 1 Propulsion 4 | . . 4 Utility 4 | . . 4 Weapon 4 | . . 4 Tool/Special . | . . . Average Slot Usage (%) 99 | . 99 98 Engine 13 | . 14 13 Treads 22 | . 28 8 Wheel 5 | . . 19 Device 7 | . 8 6 Storage 14 | . 14 14 Protection 6 | . 5 7 Energy Gun 8 | . 8 7 Energy Cannon 7 | . 4 14 Ballistic Gun 2 | . 1 5 Ballistic Cannon 9 | . 12 . Peak Build Rating 16 | 7 12 16 Average Rating 10 | 5 10 12 On Entrance 5 | . 7 10 Avg Prop Armor Cover (%) . | . . . Naked Turns . | . . . Heaviest Build 64 | 14 58 64 Greatest Support 40 | 40 40 40 Greatest Overweight (x) 1 | . 1 1 Average Overweight (x) . | . . 1 Largest Inventory Capacity 20 | 8 20 20 Average Capacity 16 | 7 15 20 Most Carried 20 | 2 18 20 Average Carried 14 | 1 13 19 Final Capacity 20 | 8 20 20 Final Carried 19 | 2 18 19 Class Distribution -------------------- 89% | Mutant 10% | Scavenger-Mutant Dominant Class ---------------- Mutant | -10/Materials Mutant | -10/Subcaves Resources | -11 -10 -10 ----------- Run | Yrd Mat Sub Matter Collected 1020 | 230 579 211 Remotely . | . . . Salvage Created 630 | 75 347 208 Parts 47 | 7 24 16 Haulers Intercepted 2 | . 2 . Recyclers Shooed 2 | 1 1 . Parts Field Recycled . | . . . Retrieved Matter . | . . . Parts Self-Destructed 12 | . . 12 Prevented 1 | . . 1 Parts Restored . | . . . Kills | -11 -10 -10 ------- Run | Yrd Mat Sub Combat Hostiles Destroyed 20 | . 14 6 Guns 5 | . 2 3 Cannons 14 | . 11 3 AOE 1 | . 1 . Classes Destroyed 7 | 2 4 1 Builder 1 | . 1 . Tunneler 1 | 1 . . Hauler 2 | . 2 . Recycler 1 | 1 . . Swarmer 7 | . 4 3 Grunt 10 | . 10 . Subdweller 3 | . . 3 Best Kill Streak 4 | 2 4 3 Combat Bots Only 4 | . 4 3 Max Kills in Single Turn 1 | 1 1 1 Gunslinging . | . . . Exploded 1 | . 1 . Melee . | . . . Uniques/NPCs Destroyed . | . . . Combat | -11 -10 -10 -------- Run | Yrd Mat Sub Hostile Shots Fired 121 | . 86 35 Missed 28 | . 24 4 Hits 93 | . 62 31 Projectile 93 | . 62 31 AOE 1 | . . 1 Critical Strikes 2 | . 1 1 Damage Taken 1424 | . 832 592 Core 261 | . 87 174 Absorbed by Shields . | . . . Core Remaining (%) 100 | 100 . . Volleys Fired 70 | 5 49 16 Largest 2 | 2 2 2 Hottest 110 | 40 100 110 Shots Fired 140 | 10 98 32 Gun 39 | 10 16 13 Cannon 101 | . 82 19 Launcher . | . . . Special . | . . . Kinetic 97 | 10 81 6 Thermal 17 | . 1 16 Explosive . | . . . Electromagnetic 26 | . 16 10 Robot Hit Streak 12 | 7 12 12 Robot Miss Streak 4 | 1 4 2 Penetration Max . | . . . Secondary Targets . | . . . Shots Hit Robots 84 | 8 51 25 Core Hits 33 | 4 21 8 Critical Kills . | . . . Critical Parts Destroyed . | . . . Critical Strikes 2 | . 2 . Blast 2 | . 2 . Melee Attacks . | . . . Impact . | . . . Slashing . | . . . Piercing . | . . . Sneak Attacks . | . . . Combat Hostiles . | . . . Follow-up Attacks . | . . . Damage Inflicted 1798 | 86 1302 410 Guns 347 | 86 101 160 Cannons 1167 | . 917 250 Explosions 216 | . 216 . Melee . | . . . Ramming 68 | . 68 . Kinetic 1108 | 86 917 105 Thermal 425 | . 216 209 Explosive . | . . . Electromagnetic 197 | . 101 96 Impact . | . . . Slashing . | . . . Piercing . | . . . Highest Corruption 1 | . 1 1 Average Corruption 1 | . 1 1 Corruption Purged . | . . . Corruption Blocked . | . . . Effects 17 | . 11 6 Message Errors 2 | . 1 1 Matter Fused 6 | . 6 . Heat Flow Errors 1 | . . 1 Energy Discharges 5 | . 2 3 Data Loss (minor) 2 | . 1 1 Data Loss (major) 1 | . 1 . Overload Shots . | . . . Overflow Damage 19 | . 19 . Projectiles 13 | . 13 . Explosions 6 | . 6 . Melee . | . . . Knockbacks 13 | . 12 1 Impact 1 | . 1 . Kinetic 12 | . 11 1 Secondary . | . . . Self-Inflicted Damage 193 | . 193 . Shots 3 | . 3 . Rammed 17 | . 17 . Targets Rammed 18 | . 18 . Kicked . | . . . Crushed 1 | . 1 . Highest Temperature 298 | . 216 298 Average Temperature 73 | . 65 122 Received Heat Transfer 553 | . 201 352 Effects 1 | . 1 . Energy Bleed 1 | . 1 . Siege Activations . | . . . Martial Activations . | . . . Shielding Activations . | . . . Robots Disrupted . | . . . Combat Hostiles . | . . . Robots Corrupted . | . . . Combat Hostiles . | . . . Parts Fried . | . . . Impact Corruptions . | . . . Robots Melted . | . . . Combat Hostiles . | . . . Parts Melted . | . . . Heat Transferred 557 | . 150 407 Parts Sabotaged . | . . . Parts Stolen . | . . . Parts Stripped . | . . . Power Chain Reactions 1 | . 1 . Alert | -11 -10 -10 ------- Run | Yrd Mat Sub Maximum Alert Level 1 | . 1 . Low Security (%) 67 | 100 64 . Level 1 32 | . 35 . Level 2 . | . . . Level 3 . | . . . Level 4 . | . . . Level 5 . | . . . High Security . | . . . Max Security . | . . . Peak Influence 285 | 5 285 . Initial . | . . . Average 134 | . 144 . Influence Increases 765 | 10 685 70 Destroy 0b10 Robot/C 340 | . 280 60 Destroy 0b10 Robot/NC 25 | 10 15 . Destroy Leader 64 | . 54 10 Successful Hack 24 | . 24 . Disable Machine 120 | . 120 . Destroy Structure 72 | . 72 . Lose Combat Pursuer 120 | . 120 . Influence Decreases 765 | 10 461 294 Entered New Map 108 | . . 108 Time Decay 621 | 10 451 160 Lost Part 36 | . 10 26 Squads Dispatched 2 | . 2 . Investigation 1 | . 1 . Extermination . | . . . Reinforcement 1 | . 1 . Assault . | . . . Garrison . | . . . Intercept . | . . . Searches Triggered . | . . . Construction Impeded . | . . . Haulers Reinforced . | . . . Active Scanning Responses . | . . . Cargo Convoy Interrupts . | . . . Stealth | -11 -10 -10 --------- Run | Yrd Mat Sub Distress Signals 2 | . 2 . Communications Jammed . | . . . Distress Signals . | . . . Times Spotted 41 | . 34 7 Peak Tracking Total 6 | . 6 3 Tactical Retreats 4 | . 4 . Traps | -11 -10 -10 ------- Run | Yrd Mat Sub Traps Triggered 4 | . 4 . Indirectly . | . . . Trap Hack Attempts . | . . . Triggered . | . . . Disarmed . | . . . Reprogrammed . | . . . Reused . | . . . Traps Extracted . | . . . Installed . | . . . Triggered . | . . . Machines | -11 -10 -10 ---------- Run | Yrd Mat Sub Machines Disabled 8 | . 8 . Max in Single Turn 5 | . 5 . Machines Repaired . | . . . Machines Dismantled . | . . . Machines Sabotaged . | . . . Overloaded Fab Kills . | . . . Hacking | -11 -10 -10 --------- Run | Yrd Mat Sub Machines Accessed 4 | . 4 . Terminals 4 | . 4 . Fabricators . | . . . Repair Stations . | . . . Recycling Units . | . . . Scanalyzers . | . . . Garrison Access . | . . . Total Hacks 11 | . 11 . Successful 5 | . 5 . Failed 5 | . 5 . Catastrophic 1 | . 1 . Database Lockouts 1 | . 1 . Manual 7 | . 7 . Terminals 11 | . 11 . Fabricators . | . . . Repair Stations . | . . . Recycling Units . | . . . Scanalyzers . | . . . Garrison Access . | . . . Terminal Hacks 5 | . 5 . Robot Analysis 1 | . 1 . Branch Access Points 1 | . 1 . Terminal Index 1 | . 1 . Hauler Manifests 2 | . 2 . Fabricator Hacks . | . . . Repair Station Hacks . | . . . Recycling Unit Hacks . | . . . Scanalyzer . | . . . Garrison Access Hacks . | . . . Unauthorized Hacks . | . . . Terminals . | . . . Fabricators . | . . . Repair Stations . | . . . Recycling Units . | . . . Scanalyzers . | . . . Garrison Access . | . . . Data Cores Recovered . | . . . Used . | . . . Hacking Detections 4 | . 4 . Full Trace Events . | . . . Feedback Events . | . . . Feedback Blocked . | . . . Robot Schematics Acquired . | . . . Robots Built . | . . . Authchips . | . . . Time . | . . . Total Robot Build Rating . | . . . Part Schematics Acquired . | . . . Parts Built . | . . . Authchips . | . . . Time . | . . . Total Part Build Rating . | . . . Part Studies Acquired . | . . . Parts Repaired . | . . . Time . | . . . Parts Recycled . | . . . Recycled Matter . | . . . Retrieved Matter . | . . . Retrieved Components . | . . . Parts Scanalyzed . | . . . Part Schematics Acquired . | . . . Parts Damaged . | . . . Bothacking | -11 -10 -10 ------------ Run | Yrd Mat Sub Used RIF Installer . | . . . Robots Hacked . | . . . Non-combat . | . . . Combat . | . . . Robot Hacks Applied . | . . . Relay Couplers Released . | . . . Fabnet Peak Effective % . | . . . Robots Rewired . | . . . Allies Hacked . | . . . Hacks Repelled . | . . . Allies | -11 -10 -10 -------- Run | Yrd Mat Sub Total Allies . | . . . Largest Group . | . . . Highest-Rated Group . | . . . Highest-Rated Ally . | . . . Total Orders . | . . . Ally Attacks . | . . . Total Damage . | . . . Kills . | . . . Allies Corrupted . | . . . Allies Melted . | . . . Intel | -11 -10 -10 ------- Run | Yrd Mat Sub Active Infowar (turns) 1290 | 47 979 264 Optics 264 | . . 264 Sensors 5 | . 5 . Seismic 1021 | 47 974 . Robot Analysis Total 1 | . 1 . Derelict Logs Recovered . | . . . Drone Launches . | . . . Drone Recoveries . | . . . Exploration | -11 -10 -10 ------------- Run | Yrd Mat Sub Turns Passed 2391 | 129 1647 615 Spaces Moved 1247 | 70 797 380 Core 8 | 8 . . Treads 932 | 62 797 73 Legs . | . . . Wheels 307 | . . 307 Hover . | . . . Flight . | . . . Fastest Speed 50 | 50 160 120 Average Speed 160 | 147 170 143 Slowest Speed 240 | 160 240 240 Overloaded Moves . | . . . Propulsion Burnouts . | . . . Robots Hopped . | . . . Potential Cave-ins 7 | . 7 . Cave-ins Triggered . | . . . Exploration Rate (%) 41 | 4 95 25 Regions Visited 2 Branch Regions 1 Pre-discovered Areas . | . . . Known Exits Taken . | . . . Unknown Exits Taken 2 | 1 1 . Scrap Searched . | . . . Spaces Dug . | . . . Terrain Destroyed 89 | . 89 . Melee . | . . . Projectile 1 | . 1 . AOE 88 | . 88 . Terrain Rammed . | . . . Walls Destroyed . | . . . Machines Disabled . | . . . Actions | -11 -10 -10 --------- Run | Yrd Mat Sub Total 1476 | 83 975 418 Wait 76 | . 65 11 Move 1245 | 69 796 380 Hop . | . . . Pick Up 22 | 2 18 2 Fast Attach 16 | 7 7 2 Attach 3 | . 1 2 Detach 1 | . 1 . Swap 14 | . 10 4 Drop 11 | . 10 1 Fire 70 | 5 49 16 Melee . | . . . Ram . | . . . Kick . | . . . Crush 18 | . 18 . Escape Stasis . | . . . Rewire . | . . . Trap . | . . . Miscellaneous . | . . . Route ------- -11/Scrapyard -10/Materials (discovered 5 exits: [*Mat x2] / *Min x2 / [*Sub]) -10/Subcaves History --------- Turn | Location | Event 2 | -11/Scrapyard | Met Revision 17 47 | -11/Scrapyard | Discovered new exit (range 14) 130 | -11/Scrapyard | Entered Materials 145 | -10/Materials | Identified exit to Mines 306 | -10/Materials | Build established: Mutant 1049 | -10/Materials | Discovered new exit (range 12) 1268 | -10/Materials | Discovered new exit (range 11) 1271 | -10/Materials | Central database locked down 1760 | -10/Materials | Discovered new exit (range 6) 1777 | -10/Materials | Entered Subcaves 1903 | -10/Subcaves | Shifting Twisted Machinery released Sub. Monowheel 1940 | -10/Subcaves | Shifting Twisted Machinery released Sub. Monowheel 2094 | -10/Subcaves | Core integrity fell below 50% 2111 | -10/Subcaves | Core integrity fell below 20% 2133 | -10/Subcaves | Lost 3 parts (1p1u1w) 2392 | -10/Subcaves | Destroyed by A9-0YE(R) with Subdweller Shrapnel Launcher Last Messages --------------- 02121_ Subatomizers dissect the Corrupted Sub. Monowheel. 02123_ Acquired Sub. Power Source. 02125_ Acquired 49 matter. 02128_ Acquired Sub. Optics. 02131_ Subatomizers dissect the Corrupted Sub. Monowheel. 02133_ Acquired Sub. Machine Gun. 02134_ Acquired Imp. Light Cannon. 02141_ Subatomizers dissect the Corrupted Sub. Monowheel. 02198_ System corrupted: Energy discharge (-78). 02222_ System corrupted: Energy discharge (-46). 02222_ PT-HFM(u) tweaks Twisted Machinery. 02270_ Subatomizers dissect the Sub. Monowheel. 02284_ Subatomizers dissect the Sub. Monowheel, destroying it. 02317_ Subatomizers dissect the Sub. Monowheel. 02340_ Sub. Power Source shoots sparks and powers down. 02350_ Dropped Broken Sub. Power Source. 02372_ 03-QZT(R) destroyed. 02374_ System corrupted: Energy discharge (-89). 02376_ Acquired 52 matter. 02391_ Subatomizers dissect the Broken Sub. Power Source. Map ----- +----------------------------------------------------+ | ???????????????????????# #### | | ???????????????????????## "" # # # | | ????????????????????????###### " ## | | ?????????????????????????????## ####= " ##? | | ???????????????????"????##????#????## "# # # #### | | ???????????????????""####"###???#####""##### ### | | ???????????????????"""" """ #### ### | | ????????????????????" " " | | ????????????????????????# | | ????????????????????????# | | ????????????????????????# | | ?????????????????????##?## "" | | ?????????????????????# ??## "" | | ?????????????????????# ??##"" " "" | | ?????????????????????# ???#""# """ ## | | ????????????????????## #??#"## """"" ### ### | | ???????????????????## ""#?### ##" #?#" ##?# | | ??????????????????##" ""???## ### ##??? | | ???????????????????""" "???# ## ### #???? | | ?????????????????????# ##?## # ### ##???? | | ??????????????????????# ### #?### ###### | | ??????????????????????# ## * # ##??## ## | | ????????????????????????# " ####??## | | ????????????????????????## "" #???## | | ????????????????????###?# #######??## | | ???????????????????## ##@ #????????# | | ??????????????????##" ##R #????????# | | ??????????????????#""""! #????????## | | ??????????????????# """ * ####?????????## | | ??????????????????# ""&###?????????????## | | ??????????????????##"" ##????????????????# ## | | ???????????????????#" "??????????????????##?## | | ???????????????????## ?????????????????????## | | ???????????????????? ????????????????????## | | ???????????????????# #???????????????????## | | ??????????????????? ????????????????????# | | ?????????????????? """????????????????????# | | ?????????????????? ???????????????????### | | ?????????????????### #???????????????????#"# & & | | ???????????????????##????????????????????#" & | | ?????????????????????????????????????????## =& | | ??????????????????????????????????????????## & | | ???????????????????????????????????????????##### | | ???????????????????????????????????????????##### | | ??????????????????????????????????????????## | | ??????????????????????????????????????????# | | ??????????????????????????????????????????#### | | ?????????????????????????????????????????????##### | | ?????????????????????????????????????????????????# | | ????????????????????????????????????????????###### | +----------------------------------------------------+ Best States ------------- Heat Dissipation 25 Energy Generation 15 Energy Capacity 265 Matter Stores 300 Matter Capacity 300 Sight Range 21 Robot Scan Range 14 Terrain Scan Density 10 Armor Coverage 150 Evasion (%) 50 Recoil Reduction 2 Item Schematics ----------------- None Robot Schematics ------------------ None Fabricated ------------ Nothing Repaired ---------- Nothing Studied --------- None Alien Tech Used ----------------- None Achievements -------------- None Challenges ------------ None Game ------ Seed GodMicrowarpBooster Manual? 0 Play Time 00:16:31 Cumulative 56.5 hours Start 2026.02.06 @ 17:43:48 End 2026.02.06 @ 17:57:44 Sessions 1 Manual Loads 0 Difficulty Rogue Special Mode None Game No. 111 Rogue 111 Adventurer 0 Explorer 0 Win Type - Total 0 Types 0/0/0/0/0/0/0/0/0/0 Lore% 35 Gallery% 31 Achievement% 27 Wizard Run 0 Options --------- Layout 0 ASCII 0 Keyboard 1 Movement Arrows Keybinds 0 Fullscreen 1 Font 18/Smallcaps Map View 38x25 Zoom Use 84% Tactical HUD 1 Map Filters NONE Filters NONE Steam 1 RUN: 64324ba1-77f7-467d-8a4c-24e36b3f4574